[Event "FIDE WCCC Open-10 2024"]
[Site "Montesilvano"]
[Date "2024.11.18"]
[Round "3.15"]
[White "Kostyukovich, Ivan"]
[Black "Nguyen Quang Anh"]
[Result "1/2-1/2"]
[ECO "A67"]
[WhiteElo "1489"]
[BlackElo "1889"]
[PlyCount "117"]
[EventDate "2024.11.18"]
[EventType "swiss"]
[EventCountry "ITA"]
[TimeControl "5400+30"]

1. d4 {[%emt 0:00:04]} c5 {[%emt 0:00:23]} 2. d5 {[%emt 0:00:16]} e6 {[%emt 0:01:00]} 3. c4 {[%emt 0:00:12]} Nf6 {[%emt 0:00:33]} 4. Nc3 {[%emt 0:00:10]} exd5 {[%emt 0:00:21]} 5. cxd5 {[%emt 0:00:06]} d6 {[%emt 0:00:11]} 6. e4 {[%emt 0:00:07]} g6 {[%emt 0:00:35]} 7. f4 {[%emt 0:01:22]} Bg7 {[%emt 0:00:27]} 8. Bb5+ {[%emt 0:00:13]} Nfd7 {[%emt 0:00:45]} 9. a4 {[%emt 0:02:09]} O-O {[%emt 0:00:59]} 10. Nf3 {[%emt 0:00:45]} Na6 {[%emt 0:00:54]} 11. O-O {[%emt 0:02:51]} Nc7 {[%emt 0:01:49]} 12. Re1 {[%emt 0:03:08]} Nxb5 {[%emt 0:04:09]} 13. Nxb5 {[%emt 0:00:40]} Nf6 {[%emt 0:04:13]} 14. Bd2 {[%emt 0:03:29]} Re8 {[%emt 0:03:46]} 15. Qc2 {[%emt 0:07:14]} Bg4 {[%emt 0:05:48]} 16. e5 {[%emt 0:04:27]} dxe5 {[%emt 0:04:37]} 17. Nxe5 {[%emt 0:06:13]} Bf5 {[%emt 0:06:41]} 18. Qxc5 {[%emt 0:03:03]} Bf8 {[%emt 0:09:04]} 19. Qd4 {[%emt 0:10:11]} Qxd5 {[%emt 0:03:35]} 20. Qxd5 {[%emt 0:04:14]} Nxd5 {[%emt 0:00:10]} 21. Nc4 {[%emt 0:01:33]} Bc5+ {[%emt 0:04:57]} 22. Kh1 {[%emt 0:00:29]} Rad8 {[%emt 0:01:10]} 23. Rxe8+ {[%emt 0:01:00]} Rxe8 {[%emt 0:03:10]} 24. Nbd6 {[%emt 0:00:31]} Bxd6 {[%emt 0:00:23]} 25. Nxd6 {[%emt 0:00:47]} Re2 {[%emt 0:00:28]} 26. Nxf5 {[%emt 0:05:41]} Rxd2 {[%emt 0:02:17]} 27. Nh4 {[%emt 0:02:01]} Rxb2 {[%emt 0:02:36]} 28. f5 {[%emt 0:00:35]} Nc3 {[%emt 0:01:02]} 29. fxg6 {[%emt 0:01:43]} fxg6 {[%emt 0:02:20]} 30. a5 {[%emt 0:02:34]} Rb1+ {[%emt 0:05:17]} 31. Rxb1 {[%emt 0:00:04]} Nxb1 {[%emt 0:00:08]} 32. Nf3 {[%emt 0:00:18]} Kf7 {[%emt 0:00:15]} 33. Ng5+ {[%emt 0:00:38]} Ke7 {[%emt 0:01:46]} 34. Nxh7 {[%emt 0:00:25]} Na3 {[%emt 0:00:07]} 35. Ng5 {[%emt 0:00:40]} Nc4 {[%emt 0:00:07]} 36. Nf3 {[%emt 0:00:25]} Nxa5 {[%emt 0:00:12]} 37. Ne5 {[%emt 0:00:26]} Kf6 {[%emt 0:01:05]} 38. Nd7+ {[%emt 0:00:27]} Ke6 {[%emt 0:00:56]} 39. Nc5+ {[%emt 0:00:16]} Kd5 {[%emt 0:02:13]} 40. Nd3 {[%emt 0:01:06]} b5 {[%emt 0:03:35]} 41. h4 {[%emt 0:01:10]} Ke4 {[%emt 0:01:16]} 42. Nc5+ {[%emt 0:02:16]} Kf5 {[%emt 0:01:09]} 43. Nd3 {[%emt 0:01:34]} Kg4 {[%emt 0:03:42]} 44. Ne5+ {[%emt 0:00:15]} Kxh4 {[%emt 0:00:20]} 45. Nxg6+ {[%emt 0:00:11]} Kg5 {[%emt 0:00:06]} 46. Ne5 {[%emt 0:00:26]} b4 {[%emt 0:00:26]} 47. Nd3 {[%emt 0:00:37]} b3 {[%emt 0:00:16]} 48. Nb2 {[%emt 0:00:03]} Nb7 {[%emt 0:08:53]} 49. Kg1 {[%emt 0:00:56]} Nc5 {[%emt 0:00:39]} 50. Kf2 {[%emt 0:00:42]} a5 {[%emt 0:00:31]} 51. Ke2 {[%emt 0:00:23]} a4 {[%emt 0:00:35]} 52. Nc4 {[%emt 0:01:09]} Kf4 {[%emt 0:09:45]} 53. Kd2 {[%emt 0:02:53]} Ne4+ {[%emt 0:00:47]} 54. Kd3 {[%emt 0:00:39]} Kf5 {[%emt 0:00:16]} 55. Na3 {[%emt 0:01:21]} Ke5 {[%emt 0:00:50]} 56. Kc4 {[%emt 0:00:31]} Kd6 {[%emt 0:00:25]} 57. Kb4 {[%emt 0:00:45]} Nc5 {[%emt 0:00:09]} 58. g4 {[%emt 0:00:29]} Kd5 {[%emt 0:00:18]} 59. g5 {[%emt 0:00:34]} 1/2-1/2

[Event "FIDE WCCC Open-10 2024"]
[Site "Montesilvano"]
[Date "2024.11.18"]
[Round "3.25"]
[White "Lin, Julian M"]
[Black "Pierloot, Siebe"]
[Result "0-1"]
[ECO "C50"]
[WhiteElo "2017"]
[BlackElo "1573"]
[PlyCount "68"]
[EventDate "2024.11.18"]
[EventType "swiss"]
[EventCountry "ITA"]
[TimeControl "5400+30"]

1. e4 {[%emt 0:00:01]} e5 {[%emt 0:00:04]} 2. Nf3 {[%emt 0:00:07]} Nc6 {[%emt 0:00:07]} 3. Bc4 {[%emt 0:00:17]} Bc5 {[%emt 0:00:09]} 4. O-O {[%emt 0:00:13]} Nf6 {[%emt 0:00:31]} 5. Nc3 {[%emt 0:00:22]} d6 {[%emt 0:00:09]} 6. Re1 {[%emt 0:01:25]} Bg4 {[%emt 0:01:02]} 7. Be2 {[%emt 0:00:39]} Bxf3 {[%emt 0:01:12]} 8. Bxf3 {[%emt 0:00:11]} O-O {[%emt 0:00:15]} 9. Nd5 {[%emt 0:00:23]} Nxd5 {[%emt 0:00:22]} 10. exd5 {[%emt 0:00:51]} Ne7 {[%emt 0:01:36]} 11. c3 {[%emt 0:00:29]} Ng6 {[%emt 0:02:12]} 12. d4 {[%emt 0:00:23]} exd4 {[%emt 0:00:34]} 13. cxd4 {[%emt 0:00:06]} Bb6 {[%emt 0:00:53]} 14. Bd2 {[%emt 0:00:55]} Bxd4 {[%emt 0:00:31]} 15. Bc3 {[%emt 0:00:46]} Bxc3 {[%emt 0:02:15]} 16. bxc3 {[%emt 1:31:22]} Ne5 {[%emt 1:26:38]} 17. Be4 {[%emt 0:00:00]} f5 {[%emt 0:00:00]} 18. Bc2 {[%emt 0:00:00]} g6 {[%emt 0:00:00]} 19. Rb1 {[%emt 0:00:00]} Rb8 {[%emt 0:00:00]} 20. Qe2 {[%emt 0:00:00]} Re8 {[%emt 0:00:00]} 21. c4 {[%emt 0:00:00]} Qd7 {[%emt 0:00:00]} 22. Qd1 {[%emt 0:00:00]} Nxc4 {[%emt 0:00:00]} 23. Rxe8+ {[%emt 0:00:00]} Qxe8 {[%emt 0:00:00]} 24. Ba4 {[%emt 0:00:00]} b5 {[%emt 0:00:00]} 25. Bb3 {[%emt 0:00:00]} Ne5 {[%emt 0:00:00]} 26. Qd4 {[%emt 0:00:00]} a6 {[%emt 0:00:00]} 27. Qa7 {[%emt 0:00:00]} Qc8 {[%emt 0:00:00]} 28. Ba4 {[%emt 0:00:00]} Ra8 {[%emt 0:00:00]} 29. Qd4 {[%emt 0:00:00]} bxa4 {[%emt 0:00:00]} 30. Qxa4 {[%emt 0:07:00]} a5 {[%emt 0:07:00]} 31. Qh4 {[%emt 0:00:00]} Rb8 {[%emt 0:00:00]} 32. Rc1 {[%emt 0:00:00]} Qf8 {[%emt 0:00:00]} 33. Rxc7 {[%emt 0:00:00]} Rb1+ {[%emt 0:00:00]} 34. Rc1 {[%emt 0:00:00]} Rxc1# {[%emt 0:00:00]} 0-1